[Event "World Senior chT-50 2019"]
[Site "Rhodes"]
[Date "2019.04.24"]
[Round "9.4"]
[White "Yermolinsky, Alex"]
[Black "Grushka, Carlos"]
[Result "1-0"]
[ECO "A16"]
[WhiteElo "2508"]
[BlackElo "2251"]
[Annotator "RC"]
[PlyCount "85"]
[EventDate "2019.04.16"]
[EventType "team-tourn"]
[EventCountry "GRE"]
[SourceTitle "playchess.com"]
[Source "ChessBase"]
[SourceQuality "1"]
[WhiteTeam "United States"]
[BlackTeam "Argentina"]
[WhiteTeamCountry "USA"]
[BlackTeamCountry "ARG"]
[TimeControl "40/5400+30:1800+30"]

1. Nf3 {[%emt 0:00:00]} Nf6 {[%emt 0:00:00]} 2. c4 {[%emt 0:00:00]} g6 {[%emt 0:00:18]} 3. Nc3 {[%emt 0:00:05]} d5 {[%emt 0:00:18]} 4. Qa4+ {[%emt 0:02:45]} c6 {[%emt 0:01:22]} 5. cxd5 {[%emt 0:02:58]} Nxd5 {[%emt 0:00:07]} 6. Qd4 {[%emt 0:07:40]} f6 {[%emt 0:04:19]} 7. e4 {[%emt 0:02:38]} Nxc3 {[%emt 0:01:14]} 8. Qxd8+ {[%emt 0:00:16]} Kxd8 {[%emt 0:00:07]} 9. bxc3 {[%emt 0:00:27]} e5 {[%emt 0:02:33]} 10. Bc4 {[%emt 0:01:45]} Nd7 {[%emt 0:01:40]} 11. d4 {[%emt 0:03:31]} Bd6 {[%emt 0:07:21]} 12. O-O {[%emt 0:00:57]} Re8 {[%emt 0:01:45]} 13. Re1 {[%emt 0:02:34]} b5 {[%emt 0:09:01]} 14. Bf7 {[%emt 0:11:47]} Re7 {[%emt 0:00:55]} 15. Bb3 {[%emt 0:00:04]} Bb7 {[%emt 0:04:44]} 16. a4 {[%emt 0:02:27]} c5 {[%emt 0:07:52]} 17. dxe5 {[%emt 0:04:56]} Nxe5 {[%emt 0:00:28]} 18. axb5 {[%emt 0:00:24]} Kc7 {[%emt 0:02:52]} 19. Be3 {[%emt 0:11:27]} Ng4 {[%emt 0:17:26]} 20. Bd5 {[%emt 0:00:37]} Nxe3 {[%emt 0:00:44]} 21. Rxe3 {[%emt 0:00:25]} a5 {[%emt 0:03:39]} 22. bxa6 {[%emt 0:08:43]} Rxa6 {[%emt 0:00:07]} 23. Rxa6 {[%emt 0:00:05]} Bxa6 {[%emt 0:00:05]} 24. c4 {[%emt 0:00:10]} Bb7 {[%emt 0:01:27]} 25. g3 {[%emt 0:01:23]} Bxd5 {[%emt 0:02:53]} 26. exd5 {[%emt 0:00:27]} Rxe3 {[%emt 0:14:04]} 27. fxe3 {[%emt 0:00:06]} Bf8 {[%emt 0:00:09]} 28. g4 {[%emt 0:02:57]} Kd6 {[%emt 0:02:58]} 29. Kf2 {[%emt 0:01:31]} f5 {[%emt 0:00:54]} 30. gxf5 {[%emt 0:01:20]} gxf5 {[%emt 0:00:02]} 31. Ng5 {[%emt 0:01:08]} h5 {[%emt 0:07:50]} 32. Ne6 {[%emt 0:00:45]} Be7 {[%emt 0:01:31]} 33. Ng7 {[%emt 0:00:35]} Ke5 {[%emt 0:00:22]} 34. Nxh5 {[%emt 0:00:09]} Ke4 {[%emt 0:00:43]} 35. Ke2 {[%emt 0:00:20]} Bd6 {[%emt 0:01:35]} 36. Ng3+ {[%emt 0:00:19]} Ke5 {[%emt 0:00:32]} 37. Kf3 {[%emt 0:00:23]} Bf8 {[%emt 0:00:21]} 38. Ne2 {[%emt 0:00:44]} Be7 {[%emt 0:00:30]} 39. Nf4 {[%emt 0:00:09]} Bg5 {[%emt 0:00:22]} 40. h4 {[%emt 0:00:00]} Bh6 {[%emt 0:00:00]} 41. Nd3+ {[%emt 0:00:51]} Kd6 {[%emt 0:02:02]} 42. h5 {[%emt 0:00:12]} Bg5 {[%emt 0:00:22]} 43. e4 {[%emt 0:00:13] Kxd5 [%emt 00:00:47]} 1-0

[Event "World Senior chT-50 2019"]
[Site "Rhodes"]
[Date "2019.04.24"]
[Round "9.6"]
[White "Minasian, Artashes"]
[Black "Garcia Palermo, Carlos"]
[Result "1-0"]
[ECO "A29"]
[WhiteElo "2472"]
[BlackElo "2407"]
[Annotator "ChessBase"]
[PlyCount "75"]
[EventDate "2019.04.16"]
[EventType "team-tourn"]
[EventCountry "GRE"]
[SourceTitle "playchess.com"]
[Source "ChessBase"]
[SourceQuality "1"]
[WhiteTeam "Armenia"]
[BlackTeam "Italy"]
[WhiteTeamCountry "ARM"]
[BlackTeamCountry "ITA"]
[TimeControl "40/5400+30:1800+30"]

1. g3 {[%emt 0:00:00]} e5 {[%emt 0:01:13]} 2. c4 {[%emt 0:00:05]} Nf6 {[%emt 0:00:10]} 3. Bg2 {[%emt 0:00:06]} d5 {[%emt 0:00:26]} 4. cxd5 {[%emt 0:00:05]} Nxd5 {[%emt 0:00:03]} 5. Nc3 {[%emt 0:00:11]} Nb6 {[%emt 0:00:05]} 6. Nf3 {[%emt 0:00:29]} Nc6 {[%emt 0:00:16]} 7. O-O {[%emt 0:00:12]} Be7 {[%emt 0:00:09]} 8. d3 {[%emt 0:00:10]} O-O {[%emt 0:00:30]} 9. Be3 {[%emt 0:00:17]} Re8 {[%emt 0:01:32]} 10. a4 {[%emt 0:02:10]} a5 {[%emt 0:00:49]} 11. Rc1 {[%emt 0:00:26]} Bf8 {[%emt 0:01:05]} 12. d4 {[%emt 0:00:57]} exd4 {[%emt 0:33:15]} 13. Nxd4 {[%emt 0:00:07]} Nxd4 {[%emt 0:00:31]} 14. Qxd4 {[%emt 0:00:17]} Qxd4 {[%emt 0:00:18]} 15. Bxd4 {[%emt 0:00:04]} c5 {[%emt 0:00:13]} 16. Be3 {[%emt 0:00:05]} Nc4 {[%emt 0:00:08]} 17. Bf4 {[%emt 0:00:29]} Nxb2 {[%emt 0:06:05]} 18. Rc2 {[%emt 0:01:30]} Nc4 {[%emt 0:05:57]} 19. Nd5 {[%emt 0:00:20]} Na3 {[%emt 0:00:13]} 20. Rc3 {[%emt 0:03:19]} c4 {[%emt 0:00:38]} 21. Nc7 {[%emt 0:04:13]} Bd7 {[%emt 0:02:35]} 22. Nxa8 {[%emt 0:00:20]} Rxa8 {[%emt 0:00:05]} 23. Ra1 {[%emt 0:02:06]} Bxa4 {[%emt 0:00:23]} 24. Rcxa3 {[%emt 0:01:09]} Bxa3 {[%emt 0:00:06]} 25. Rxa3 {[%emt 0:00:04]} Bb3 {[%emt 0:00:28]} 26. Bxb7 {[%emt 0:01:33]} Ra7 {[%emt 0:00:04]} 27. Bd5 {[%emt 0:00:14]} a4 {[%emt 0:00:21]} 28. e4 {[%emt 0:00:22]} h6 {[%emt 0:01:48]} 29. h4 {[%emt 0:02:02]} Rd7 {[%emt 0:01:10]} 30. Kf1 {[%emt 0:00:42]} Kf8 {[%emt 0:00:11]} 31. Ke2 {[%emt 0:00:48]} f5 {[%emt 0:00:23]} 32. f3 {[%emt 0:00:05]} fxe4 {[%emt 0:00:40]} 33. fxe4 {[%emt 0:00:04]} Ke7 {[%emt 0:02:09]} 34. Be5 {[%emt 0:02:40]} g5 {[%emt 0:02:35]} 35. hxg5 {[%emt 0:01:41]} hxg5 {[%emt 0:00:07]} 36. Ke3 {[%emt 0:00:24]} Kf8 {[%emt 0:00:51]} 37. Bc3 {[%emt 0:01:04]} Rh7 {[%emt 0:00:25]} 38. e5 {[%emt 0:03:03]} 1-0

[Event "World Senior chT-50 2019"]
[Site "Rhodes"]
[Date "2019.04.24"]
[Round "9.7"]
[White "Bellia, Fabrizio"]
[Black "Movsziszian, Karen"]
[Result "1/2-1/2"]
[ECO "B00"]
[WhiteElo "2447"]
[BlackElo "2485"]
[Annotator "ChessBase"]
[PlyCount "80"]
[EventDate "2019.04.16"]
[EventType "team-tourn"]
[EventCountry "GRE"]
[SourceTitle "playchess.com"]
[Source "ChessBase"]
[SourceQuality "1"]
[WhiteTeam "Italy"]
[BlackTeam "Armenia"]
[WhiteTeamCountry "ITA"]
[BlackTeamCountry "ARM"]
[TimeControl "40/5400+30:1800+30"]

1. e4 {[%emt 0:00:00]} Nc6 {[%emt 0:00:00]} 2. Nc3 {[%emt 0:00:34]} Nf6 {[%emt 0:00:03]} 3. d4 {[%emt 0:04:30]} d5 {[%emt 0:01:24]} 4. e5 {[%emt 0:04:19]} Nd7 {[%emt 0:00:03]} 5. Nf3 {[%emt 0:13:23]} Nb6 {[%emt 0:00:09]} 6. Be2 {[%emt 0:00:19]} Bg4 {[%emt 0:01:40]} 7. h3 {[%emt 0:00:44]} Bxf3 {[%emt 0:00:06]} 8. Bxf3 {[%emt 0:00:30]} e6 {[%emt 0:00:48]} 9. O-O {[%emt 0:00:53]} Be7 {[%emt 0:03:06]} 10. Ne2 {[%emt 0:06:00]} h5 {[%emt 0:00:46]} 11. Nf4 {[%emt 0:01:14]} g6 {[%emt 0:01:43]} 12. a4 {[%emt 0:03:30]} a5 {[%emt 0:03:29]} 13. c3 {[%emt 0:03:34]} Qd7 {[%emt 0:07:48]} 14. b3 {[%emt 0:02:51]} O-O-O {[%emt 0:05:30]} 15. Be3 {[%emt 0:05:18]} Kb8 {[%emt 0:01:05]} 16. Qe2 {[%emt 0:03:22]} Rhg8 {[%emt 0:00:34]} 17. Bd2 {[%emt 0:07:03]} Rde8 {[%emt 0:00:24]} 18. Qd3 {[%emt 0:02:45]} Ref8 {[%emt 0:04:02]} 19. Rfe1 {[%emt 0:01:21]} f5 {[%emt 0:04:07]} 20. exf6 {[%emt 0:00:34]} Rxf6 {[%emt 0:00:02]} 21. Qe2 {[%emt 0:00:58]} Nd8 {[%emt 0:02:15]} 22. Nd3 {[%emt 0:06:54]} Nf7 {[%emt 0:02:01]} 23. Ne5 {[%emt 0:02:51]} Nxe5 {[%emt 0:00:47]} 24. Qxe5 {[%emt 0:01:12]} Re8 {[%emt 0:07:40]} 25. Re2 {[%emt 0:01:32]} Bd8 {[%emt 0:03:08]} 26. Rae1 {[%emt 0:01:33]} Rf5 {[%emt 0:04:42]} 27. Qg3 {[%emt 0:02:00]} Qf7 {[%emt 0:00:04]} 28. Re5 {[%emt 0:00:33]} Rxe5 {[%emt 0:20:18]} 29. Qxe5 {[%emt 0:01:19]} Nd7 {[%emt 0:01:24]} 30. Qf4 {[%emt 0:02:08]} Qxf4 {[%emt 0:04:32]} 31. Bxf4 {[%emt 0:00:04]} Kc8 {[%emt 0:01:11]} 32. Bd1 {[%emt 0:04:06]} Bf6 {[%emt 0:04:36]} 33. Bc2 {[%emt 0:01:53]} g5 {[%emt 0:00:45]} 34. Bd2 {[%emt 0:00:23]} h4 {[%emt 0:01:45]} 35. Bf5 {[%emt 0:01:50]} Nf8 {[%emt 0:00:03]} 36. f4 {[%emt 0:02:11]} gxf4 {[%emt 0:00:28]} 37. Bxf4 {[%emt 0:00:04]} Kd7 {[%emt 0:00:37]} 38. Bd3 {[%emt 0:00:25]} Rc8 {[%emt 0:03:53]} 39. Be5 {[%emt 0:06:30]} Bg5 {[%emt 0:02:52]} 40. c4 {[%emt 0:00:00]} c6 {[%emt 0:00:00]} 1/2-1/2

[Event "World Senior chT-50 2019"]
[Site "Rhodes"]
[Date "2019.04.24"]
[Round "9.8"]
[White "Petrosian, Arshak B"]
[Black "Bruno, Fabio"]
[Result "1/2-1/2"]
[ECO "A07"]
[WhiteElo "2470"]
[BlackElo "2433"]
[Annotator "ChessBase"]
[PlyCount "61"]
[EventDate "2019.04.16"]
[EventType "team-tourn"]
[EventCountry "GRE"]
[SourceTitle "playchess.com"]
[Source "ChessBase"]
[SourceQuality "1"]
[WhiteTeam "Armenia"]
[BlackTeam "Italy"]
[WhiteTeamCountry "ARM"]
[BlackTeamCountry "ITA"]
[TimeControl "40/5400+30:1800+30"]

1. Nf3 {[%emt 0:02:26]} d5 {[%emt 0:00:02]} 2. g3 {[%emt 0:00:20]} c6 {[%emt 0:01:47]} 3. Bg2 {[%emt 0:00:12]} Nf6 {[%emt 0:00:10]} 4. O-O {[%emt 0:00:54]} Bf5 {[%emt 0:03:48]} 5. d3 {[%emt 0:00:35]} h6 {[%emt 0:00:10]} 6. Nbd2 {[%emt 0:04:03]} e6 {[%emt 0:00:37]} 7. Qe1 {[%emt 0:00:21]} Be7 {[%emt 0:00:27]} 8. e4 {[%emt 0:00:55]} Bh7 {[%emt 0:00:06]} 9. Qe2 {[%emt 0:00:34]} O-O {[%emt 0:00:09]} 10. Ne5 {[%emt 0:00:59]} Nbd7 {[%emt 0:05:00]} 11. Nxd7 {[%emt 0:00:25]} Qxd7 {[%emt 0:00:37]} 12. f4 {[%emt 0:04:11]} Qc7 {[%emt 0:04:55]} 13. g4 {[%emt 0:10:50]} Rfe8 {[%emt 0:08:18]} 14. Kh1 {[%emt 0:05:58]} Nd7 {[%emt 0:06:39]} 15. Nf3 {[%emt 0:25:42]} dxe4 {[%emt 0:11:33]} 16. dxe4 {[%emt 0:00:07]} Nc5 {[%emt 0:01:20]} 17. Ne1 {[%emt 0:16:15]} a5 {[%emt 0:10:39]} 18. Nd3 {[%emt 0:01:52]} Nxd3 {[%emt 0:03:19]} 19. Qxd3 {[%emt 0:05:55]} Rad8 {[%emt 0:03:00]} 20. Qf3 {[%emt 0:01:04]} Rd4 {[%emt 0:02:12]} 21. f5 {[%emt 0:07:33]} exf5 {[%emt 0:08:41]} 22. exf5 {[%emt 0:00:17]} Bg5 {[%emt 0:04:33]} 23. Bxg5 {[%emt 0:01:49]} hxg5 {[%emt 0:00:03]} 24. Rae1 {[%emt 0:00:38]} Red8 {[%emt 0:03:57]} 25. Re4 {[%emt 0:02:47]} Rxe4 {[%emt 0:02:01]} 26. Qxe4 {[%emt 0:00:01]} f6 {[%emt 0:01:09]} 27. Re1 {[%emt 0:00:20]} Kf8 {[%emt 0:00:20]} 28. Bf1 {[%emt 0:00:21]} Bg8 {[%emt 0:01:48]} 29. Bc4 {[%emt 0:00:16]} Bxc4 {[%emt 0:00:27]} 30. Qxc4 {[%emt 0:00:03]} Qd6 {[%emt 0:00:19]} 31. Qe4 {[%emt 0:04:19]} 1/2-1/2

[Event "World Senior chT-50 2019"]
[Site "Rhodes"]
[Date "2019.04.24"]
[Round "9.9"]
[White "Soffer, Ram"]
[Black "Olafsson, Helgi"]
[Result "1/2-1/2"]
[ECO "A28"]
[WhiteElo "2486"]
[BlackElo "2506"]
[Annotator "ChessBase"]
[PlyCount "41"]
[EventDate "2019.04.16"]
[EventType "team-tourn"]
[EventCountry "GRE"]
[SourceTitle "playchess.com"]
[Source "ChessBase"]
[SourceQuality "1"]
[WhiteTeam "Israel"]
[BlackTeam "Iceland"]
[WhiteTeamCountry "ISR"]
[BlackTeamCountry "ISL"]
[TimeControl "40/5400+30:1800+30"]

1. c4 {[%emt 0:00:00]} Nf6 {[%emt 0:00:51]} 2. Nc3 {[%emt 0:01:22]} e5 {[%emt 0:00:25]} 3. Nf3 {[%emt 0:00:07]} Nc6 {[%emt 0:00:04]} 4. e3 {[%emt 0:00:06]} Bb4 {[%emt 0:00:13]} 5. Qc2 {[%emt 0:00:11]} d6 {[%emt 0:00:22]} 6. Be2 {[%emt 0:07:15]} O-O {[%emt 0:02:17]} 7. O-O {[%emt 0:00:34]} Bg4 {[%emt 0:00:41]} 8. Nd5 {[%emt 0:03:58]} Re8 {[%emt 0:03:10]} 9. d3 {[%emt 0:05:09]} Bc5 {[%emt 0:04:33]} 10. Bd2 {[%emt 0:13:18]} Nxd5 {[%emt 0:03:58]} 11. cxd5 {[%emt 0:00:05]} Ne7 {[%emt 0:00:04]} 12. Qc4 {[%emt 0:06:21]} Bh5 {[%emt 0:03:13]} 13. Qh4 {[%emt 0:03:20]} Bg6 {[%emt 0:01:27]} 14. e4 {[%emt 0:00:26]} c6 {[%emt 0:00:22]} 15. dxc6 {[%emt 0:00:21]} Nxc6 {[%emt 0:00:41]} 16. Qxd8 {[%emt 0:01:13]} Rexd8 {[%emt 0:00:33]} 17. Rac1 {[%emt 0:03:01]} f6 {[%emt 0:01:47]} 18. Be3 {[%emt 0:11:04]} b6 {[%emt 0:16:36]} 19. a3 {[%emt 0:05:39]} a5 {[%emt 0:00:26]} 20. Rc3 {[%emt 0:05:41]} a4 {[%emt 0:07:14]} 21. Rfc1 {[%emt 0:00:14]} 1/2-1/2

[Event "World Senior chT-50 2019"]
[Site "Rhodes"]
[Date "2019.04.24"]
[Round "9.12"]
[White "Thorhallsson, Throstur"]
[Black "Gruenfeld, Yehuda"]
[Result "1-0"]
[ECO "B55"]
[WhiteElo "2425"]
[BlackElo "2428"]
[Annotator "ChessBase"]
[PlyCount "57"]
[EventDate "2019.04.16"]
[EventType "team-tourn"]
[EventCountry "GRE"]
[SourceTitle "playchess.com"]
[Source "ChessBase"]
[SourceQuality "1"]
[WhiteTeam "Iceland"]
[BlackTeam "Israel"]
[WhiteTeamCountry "ISL"]
[BlackTeamCountry "ISR"]
[TimeControl "40/5400+30:1800+30"]

1. e4 {[%emt 0:00:00]} c5 {[%emt 0:00:00]} 2. Nf3 {[%emt 0:00:36]} d6 {[%emt 0:00:00]} 3. d4 {[%emt 0:00:20]} cxd4 {[%emt 0:00:00]} 4. Nxd4 {[%emt 0:00:10]} Nf6 {[%emt 0:00:00]} 5. f3 {[%emt 0:00:13]} e5 {[%emt 0:18:19]} 6. Nb3 {[%emt 0:00:53]} Be6 {[%emt 0:01:59]} 7. c4 {[%emt 0:00:27]} a5 {[%emt 0:02:19]} 8. Be3 {[%emt 0:06:46]} a4 {[%emt 0:05:59]} 9. N3d2 {[%emt 0:01:38]} Qa5 {[%emt 0:00:11]} 10. Na3 {[%emt 0:08:10]} Nbd7 {[%emt 0:01:30]} 11. Be2 {[%emt 0:05:10]} Be7 {[%emt 0:00:29]} 12. O-O {[%emt 0:02:33]} O-O {[%emt 0:01:49]} 13. Ndb1 {[%emt 0:09:43]} Rfc8 {[%emt 0:09:18]} 14. Qd2 {[%emt 0:07:12]} Bd8 {[%emt 0:06:49]} 15. Nc3 {[%emt 0:11:06]} Bb6 {[%emt 0:00:39]} 16. Rfd1 {[%emt 0:01:53]} Bc5 {[%emt 0:12:04]} 17. Nab5 {[%emt 0:05:07]} Ne8 {[%emt 0:02:13]} 18. Bxc5 {[%emt 0:06:49]} dxc5 {[%emt 0:01:05]} 19. f4 {[%emt 0:05:18]} exf4 {[%emt 0:04:05]} 20. Qxf4 {[%emt 0:00:15]} Qd8 {[%emt 0:05:40]} 21. e5 {[%emt 0:01:42]} Qe7 {[%emt 0:00:17]} 22. Bf3 {[%emt 0:02:03]} Nb6 {[%emt 0:00:55]} 23. Nd5 {[%emt 0:01:13]} Nxd5 {[%emt 0:01:13]} 24. cxd5 {[%emt 0:00:18]} Bd7 {[%emt 0:00:06]} 25. Nc3 {[%emt 0:00:50]} b5 {[%emt 0:05:11]} 26. d6 {[%emt 0:01:23]} Qf8 {[%emt 0:00:04]} 27. Bxa8 {[%emt 0:01:09]} Rxa8 {[%emt 0:00:07]} 28. Nd5 {[%emt 0:00:17]} h6 {[%emt 0:07:03]} 29. Ne7+ {[%emt 0:00:26]} 1-0

[Event "World Senior chT-50 2019"]
[Site "Rhodes"]
[Date "2019.04.24"]
[Round "9.13"]
[White "Boensch, Uwe"]
[Black "Speelman, Jon S"]
[Result "1/2-1/2"]
[ECO "A40"]
[WhiteElo "2525"]
[BlackElo "2509"]
[Annotator "ChessBase"]
[PlyCount "32"]
[EventDate "2019.04.16"]
[EventType "team-tourn"]
[EventCountry "GRE"]
[SourceTitle "playchess.com"]
[Source "ChessBase"]
[SourceQuality "1"]
[WhiteTeam "Germany"]
[BlackTeam "England"]
[WhiteTeamCountry "GER"]
[BlackTeamCountry "ENG"]
[TimeControl "40/5400+30:1800+30"]

1. d4 {[%emt 0:00:00]} e6 {[%emt 0:00:46]} 2. c4 {[%emt 0:00:00]} b6 {[%emt 0:00:07]} 3. Nf3 {[%emt 0:00:30]} Bb7 {[%emt 0:00:14]} 4. g3 {[%emt 0:00:10]} Bb4+ {[%emt 0:00:49]} 5. Bd2 {[%emt 0:00:07]} Bxf3 {[%emt 0:00:14]} 6. exf3 {[%emt 0:00:03]} Bxd2+ {[%emt 0:00:08]} 7. Qxd2 {[%emt 0:02:22]} Nf6 {[%emt 0:00:25]} 8. Nc3 {[%emt 0:05:32]} O-O {[%emt 0:00:58]} 9. Be2 {[%emt 0:06:49]} c6 {[%emt 0:04:18]} 10. O-O {[%emt 0:05:39]} d5 {[%emt 0:01:09]} 11. Rfd1 {[%emt 0:01:29]} dxc4 {[%emt 0:03:41]} 12. Bxc4 {[%emt 0:00:14]} Nbd7 {[%emt 0:00:04]} 13. Rac1 {[%emt 0:00:56]} Rc8 {[%emt 0:02:26]} 14. b4 {[%emt 0:05:46]} Nd5 {[%emt 0:03:19]} 15. Ne4 {[%emt 0:01:35]} Qe7 {[%emt 0:04:00]} 16. a3 {[%emt 0:02:34]} h6 {[%emt 0:00:06]} 1/2-1/2

[Event "World Senior chT-50 2019"]
[Site "Rhodes"]
[Date "2019.04.24"]
[Round "9.15"]
[White "Brendel, Oliver"]
[Black "Emms, John M"]
[Result "1/2-1/2"]
[ECO "A36"]
[WhiteElo "2339"]
[BlackElo "2474"]
[Annotator "ChessBase"]
[PlyCount "68"]
[EventDate "2019.04.16"]
[EventType "team-tourn"]
[EventCountry "GRE"]
[SourceTitle "playchess.com"]
[Source "ChessBase"]
[SourceQuality "1"]
[WhiteTeam "Germany"]
[BlackTeam "England"]
[WhiteTeamCountry "GER"]
[BlackTeamCountry "ENG"]
[TimeControl "40/5400+30:1800+30"]

1. c4 {[%emt 0:00:00]} g6 {[%emt 0:02:36]} 2. g3 {[%emt 0:00:00]} Bg7 {[%emt 0:00:05]} 3. Bg2 {[%emt 0:00:00]} Nf6 {[%emt 0:00:13]} 4. Nc3 {[%emt 0:00:43]} O-O {[%emt 0:00:16]} 5. e4 {[%emt 0:00:35]} c5 {[%emt 0:00:36]} 6. Nge2 {[%emt 0:00:11]} Nc6 {[%emt 0:00:13]} 7. d3 {[%emt 0:01:48]} a6 {[%emt 0:01:03]} 8. a3 {[%emt 0:03:38]} d6 {[%emt 0:13:02]} 9. O-O {[%emt 0:00:53]} Rb8 {[%emt 0:01:01]} 10. Rb1 {[%emt 0:01:42]} b5 {[%emt 0:00:23]} 11. cxb5 {[%emt 0:00:35]} axb5 {[%emt 0:00:05]} 12. b4 {[%emt 0:00:19]} Ba6 {[%emt 0:01:07]} 13. h3 {[%emt 0:14:07]} Nd7 {[%emt 0:04:17]} 14. Be3 {[%emt 0:05:14]} Nd4 {[%emt 0:08:30]} 15. Qd2 {[%emt 0:07:25]} Nb6 {[%emt 0:07:22]} 16. Bh6 {[%emt 0:11:13]} Bxh6 {[%emt 0:10:10]} 17. Qxh6 {[%emt 0:00:06]} Na4 {[%emt 0:00:05]} 18. f4 {[%emt 0:10:16]} Nxc3 {[%emt 0:16:05]} 19. Nxc3 {[%emt 0:00:10]} f5 {[%emt 0:10:09]} 20. g4 {[%emt 0:02:34]} e6 {[%emt 0:01:28]} 21. exf5 {[%emt 0:02:00]} gxf5 {[%emt 0:01:07]} 22. gxf5 {[%emt 0:06:07]} exf5 {[%emt 0:04:14]} 23. Nd5 {[%emt 0:01:58]} Rb7 {[%emt 0:06:38]} 24. Kh2 {[%emt 0:11:06]} Rg7 {[%emt 0:05:07]} 25. Bh1 {[%emt 0:00:27]} Kh8 {[%emt 0:04:36]} 26. Rg1 {[%emt 0:01:09]} Rff7 {[%emt 0:00:26]} 27. bxc5 {[%emt 0:05:20]} Bb7 {[%emt 0:01:41]} 28. cxd6 {[%emt 0:01:12]} Qa5 {[%emt 0:00:28]} 29. Nb4 {[%emt 0:10:01]} Bxh1 {[%emt 0:00:34]} 30. Rxg7 {[%emt 0:00:28]} Rxg7 {[%emt 0:00:13]} 31. Qf6 {[%emt 0:00:14]} Qa8 {[%emt 0:00:48]} 32. Nc6 {[%emt 0:02:49]} Qxc6 {[%emt 0:00:46]} 33. Qd8+ {[%emt 0:00:06]} Rg8 {[%emt 0:00:10]} 34. Qf6+ {[%emt 0:00:05]} Rg7 {[%emt 0:00:05]} 1/2-1/2

[Event "World Senior chT-50 2019"]
[Site "Rhodes"]
[Date "2019.04.24"]
[Round "9.17"]
[White "Wallner, Joachim"]
[Black "Yrjola, Jouni"]
[Result "1/2-1/2"]
[ECO "A15"]
[WhiteElo "2271"]
[BlackElo "2327"]
[Annotator "NA"]
[PlyCount "20"]
[EventDate "2019.04.16"]
[EventType "team-tourn"]
[EventCountry "GRE"]
[SourceTitle "playchess.com"]
[Source "ChessBase"]
[SourceQuality "1"]
[WhiteTeam "Austria"]
[BlackTeam "Finland"]
[WhiteTeamCountry "AUT"]
[BlackTeamCountry "FIN"]
[TimeControl "40/5400+30:1800+30"]

1. b3 {[%emt 0:00:00]} e5 {[%emt 0:00:13]} 2. Bb2 {[%emt 0:00:00]} d6 {[%emt 0:01:00]} 3. e3 {[%emt 0:00:12]} Nf6 {[%emt 0:00:10]} 4. c4 {[%emt 0:00:17]} g6 {[%emt 0:00:21]} 5. d3 {[%emt 0:01:44]} Bg7 {[%emt 0:00:37]} 6. Nf3 {[%emt 0:00:12]} O-O {[%emt 0:00:20]} 7. Be2 {[%emt 0:00:03]} Re8 {[%emt 0:04:10]} 8. O-O {[%emt 0:01:50]} Nbd7 {[%emt 0:02:45]} 9. Nc3 {[%emt 0:02:32]} c6 {[%emt 0:03:52]} 10. Qc2 {[%emt 0:03:03]} a6 {[%emt 0:01:04]} 1/2-1/2

[Event "World Senior chT-50 2019"]
[Site "Rhodes"]
[Date "2019.04.24"]
[Round "9.18"]
[White "Viljava, Tapani"]
[Black "Denk, Adolf"]
[Result "1/2-1/2"]
[ECO "A16"]
[WhiteElo "2159"]
[BlackElo "2255"]
[Annotator "NA"]
[PlyCount "36"]
[EventDate "2019.04.16"]
[EventType "team-tourn"]
[EventCountry "GRE"]
[SourceTitle "playchess.com"]
[Source "ChessBase"]
[SourceQuality "1"]
[WhiteTeam "Finland"]
[BlackTeam "Austria"]
[WhiteTeamCountry "FIN"]
[BlackTeamCountry "AUT"]
[TimeControl "40/5400+30:1800+30"]

1. c4 {[%emt 0:00:00]} g6 {[%emt 0:00:10]} 2. g3 {[%emt 0:00:59]} Bg7 {[%emt 0:00:08]} 3. Bg2 {[%emt 0:00:06]} Nf6 {[%emt 0:00:38]} 4. Nc3 {[%emt 0:00:30]} d6 {[%emt 0:05:49]} 5. e3 {[%emt 0:10:53]} O-O {[%emt 0:01:12]} 6. Nge2 {[%emt 0:00:17]} c6 {[%emt 0:03:13]} 7. O-O {[%emt 0:03:51]} Nbd7 {[%emt 0:03:19]} 8. Rb1 {[%emt 0:09:57]} Nb6 {[%emt 0:07:56]} 9. b3 {[%emt 0:06:17]} d5 {[%emt 0:00:55]} 10. cxd5 {[%emt 0:07:58]} Nbxd5 {[%emt 0:05:09]} 11. d4 {[%emt 0:04:16]} Bg4 {[%emt 0:05:30]} 12. Bb2 {[%emt 0:19:22]} Nxc3 {[%emt 0:13:02]} 13. Bxc3 {[%emt 0:00:06]} Qd7 {[%emt 0:00:08]} 14. Qc2 {[%emt 0:09:38]} Bh3 {[%emt 0:03:38]} 15. Bxh3 {[%emt 0:02:34]} Qxh3 {[%emt 0:00:02]} 16. Nf4 {[%emt 0:00:09]} Qf5 {[%emt 0:04:14]} 17. Qxf5 {[%emt 0:01:36]} gxf5 {[%emt 0:00:02]} 18. Bb4 {[%emt 0:03:20]} Rfe8 {[%emt 0:00:15]} 1/2-1/2